bitfinex/quotes_ETHUSD_20250213
["timestamp","ask_amount","ask_price","bid_price","bid_amount"]
[1739436582746,0.565,2665.8,2665.4,3.75175]
[1739436582955,0.565,2665.8,2665.5,3.75161]
[1739436583149,3.23,2665.7,2665.5,3.75161]
[1739436583354,3.23,2665.7,2665.5,3.75163]
[1739436583580,3.50417096,2665.7,2665.5,3.75163]
[1739436583875,0.015,2665.6,2665.5,3.75163]
[1739436584079,0.565,2665.6,2665.1,3.75209]
[1739436584297,3.795,2665.6,2664.6,0.8183]
[1739436584497,3.795,2665.6,2664.6,4.57114]
[1739436584701,3.795,2665.6,2665.1,3.7521]
[1739436584896,4.06917096,2665.6,2664.8,3.75257]
[1739436585100,3.51917096,2665.6,2665.1,3.75207]
[1739436585275,3.51917096,2665.6,2665.3,3.75179]
[1739436585487,3.51917096,2665.6,2665.1,3.75212]
[1739436585809,0.015,2665.4,2665.1,3.75211]
[1739436586108,0.015,2665.4,2664.9,3.75237]
[1739436586309,3.7671,2665.2,2664.3,0.8]
[1739436586516,3.7671,2665.2,2664.7,3.75273]
[1739436586517,0.015,2665.2,2664.7,3.75273]
[1739436586872,0.015,2665.0,2664.9,3.75246]
[1739436587374,0.015,2665.0,2664.8,3.75256]
[1739436587570,0.015,2665.0,2664.9,3.75248]
[1739436587767,4.015,2665.0,2664.9,3.75248]
[1739436588292,4.28917096,2665.0,2664.9,3.75248]
[1739436588473,4.28917096,2665.0,2664.7,3.75273]
[1739436589074,4.28917096,2665.0,2664.5,3.75295]
[1739436589276,4.28917096,2665.0,2664.6,3.75289]
[1739436589537,4.28917096,2665.0,2664.7,3.75274]
[1739436589834,0.015,2664.8,2664.7,3.75274]
[1739436589992,0.015,2664.8,2664.5,3.75297]
[1739436590194,0.015,2664.8,2664.6,3.7528]
[1739436590614,0.565,2664.8,2664.3,3.75323]
[1739436590821,0.015,2664.6,2664.3,7.50646]
[1739436590978,0.015,2664.6,2664.3,3.75323]
[1739436591879,0.015,2664.6,2664.4,3.7531]
[1739436592168,0.28917096,2664.5,2664.4,3.75319]
[1739436593057,0.27417096,2664.5,2664.4,3.75319]
[1739436593670,0.27417096,2664.5,2664.3,3.75323]
[1739436593840,0.27417096,2664.5,2664.3,7.50648]
[1739436594147,0.27417096,2664.5,2664.4,3.75319]
[1739436594345,0.28917096,2664.5,2664.1,3.75347]
[1739436594882,0.28917096,2664.5,2664.2,3.75345]
[1739436595363,0.28917096,2664.5,2664.4,3.75319]
[1739436595597,0.015,2664.5,2664.4,3.75319]
[1739436595756,0.015,2664.5,2663.6,4.55329]
[1739436595757,0.369,2665.1,2664.6,3.75279]
[1739436595961,0.369,2665.1,2664.7,3.75269]
[1739436596155,0.015,2665.0,2664.7,3.75269]
[1739436596378,0.015,2665.0,2664.9,3.75248]
[1739436596900,0.015,2665.1,2665.0,3.75226]
[1739436597255,0.95632769,2665.1,2665.0,3.75234]
[1739436597457,0.40632769,2665.1,2664.7,3.75266]
[1739436597656,0.55,2665.0,2664.7,3.75266]
[1739436597899,0.55,2665.0,2664.8,3.75255]
[1739436598393,0.55,2665.0,2664.9,3.75248]
[1739436598394,0.565,2665.0,2664.9,3.75248]
[1739436598599,0.565,2665.0,2664.4,4.56146]
[1739436598954,0.0075,2664.9,2664.0,0.8083]
[1739436599179,0.0075,2664.9,2664.5,7.50594]
[1739436599381,0.0075,2664.9,2664.6,3.75284]
[1739436599573,4.31734,2665.0,2664.5,3.75295]
[1739436599784,0.565,2665.0,2664.5,3.75295]
[1739436599984,0.015,2664.7,2664.6,3.7528]
[1739436600198,0.015,2664.7,2664.1,3.75361]
[1739436600388,0.015,2664.7,2664.5,3.75301]
[1739436600588,0.015,2664.7,2664.6,3.7529]
[1739436600774,0.27573082,2664.8,2664.6,3.7529]
[1739436601109,0.27573082,2664.8,2664.7,4.56106]
[1739436601410,8.2e-07,2664.8,2664.7,7.56106]
[1739436601698,8.2e-07,2664.8,2664.7,7.59857852]
[1739436601900,8.2e-07,2664.8,2664.7,7.56106]
[1739436603910,8.2e-07,2664.8,2664.7,7.59857578]
[1739436604118,5.95,2666.2,2665.9,3.75107]
[1739436604302,5.95,2666.2,2666.1,3.75079]
[1739436604303,6.307,2666.2,2666.1,3.75079]
[1739436604702,6.322,2666.2,2666.1,3.75079]
[1739436605117,6.322,2666.2,2666.0,3.75092]
[1739436605319,6.307,2666.2,2665.9,3.75106]
[1739436605617,0.015,2666.1,2666.0,3.75093]
[1739436605978,0.015,2666.1,2665.9,3.75107]
[1739436605979,0.565,2666.1,2665.7,7.50254]
[1739436606322,0.565,2666.1,2665.5,3.75151]
[1739436606323,4.31588,2666.1,2665.5,3.75151]
[1739436606615,8.06679,2666.1,2665.5,3.75151]
[1739436606832,0.565,2665.8,2665.3,3.75183]
[1739436606981,0.565,2665.8,2665.4,3.75177]
[1739436607388,0.015,2665.8,2665.5,3.75159]
[1739436607718,3.7514,2665.7,2665.2,3.75197]
[1739436607941,0.015,2665.6,2665.2,3.75197]
[1739436608353,0.015,2665.6,2664.7,0.8105]
[1739436608648,0.565,2665.2,2664.8,3.75254]
[1739436609135,0.565,2665.2,2665.0,3.75234]
[1739436609332,0.015,2665.2,2665.0,3.75234]
[1739436609531,0.015,2665.2,2664.9,3.75246]
[1739436609729,0.015,2665.2,2664.8,3.75254]
[1739436610029,0.015,2665.2,2665.0,3.75231]
[1739436610448,0.015,2665.2,2665.1,3.7522]
[1739436610686,0.015,2665.2,2664.5,3.75303]
[1739436610687,4.31735,2665.0,2664.5,3.75303]
[1739436610887,0.565,2665.0,2664.7,3.75267]
[1739436611037,0.565,2665.0,2664.9,3.75248]
[1739436611385,0.015,2665.0,2664.9,3.75248]
[1739436612071,0.354,2665.1,2665.0,3.75234]
[1739436612985,0.82361527,2666.1,2665.7,3.75125]
[1739436612986,0.353,2665.8,2665.7,3.75125]
[1739436613199,0.353,2665.8,2665.3,4.52389]
[1739436613200,0.82361527,2666.1,2666.0,3.75093]
[1739436613378,0.0075,2666.0,2665.9,3.75106]
[1739436614097,0.015,2666.0,2665.7,3.75132]
[1739436614251,0.565,2666.0,2665.6,3.75145]
[1739436614452,0.565,2666.0,2665.5,3.75151]
[1739436614686,0.565,2666.0,2665.6,3.75142]
[1739436614892,3.75107,2665.9,2665.0,0.8215]
[1739436615191,0.565,2665.6,2665.2,7.50397]
[1739436615393,0.565,2665.6,2665.2,3.75195]
[1739436615599,0.565,2665.6,2665.4,3.75176]
[1739436615749,4.3164,2665.7,2665.2,3.75195]
[1739436615946,4.3164,2665.7,2665.2,3.75204]
[1739436616200,4.3164,2665.7,2665.1,3.75214]
[1739436616201,0.565,2665.6,2665.1,3.75214]
[1739436616355,0.565,2665.6,2664.7,0.8215]
[1739436616555,0.565,2665.6,2665.2,3.75197]
[1739436617252,0.015,2665.6,2665.2,3.75197]
[1739436617481,0.565,2665.8,2665.5,3.75156]
[1739436617687,0.015,2665.8,2665.5,3.75156]
[1739436617887,0.015,2665.5,2665.1,3.75211]
[1739436618350,0.015,2665.5,2665.1,7.50417]
[1739436618553,0.27634851,2665.4,2665.1,3.75206]
[1739436618790,0.27634851,2665.4,2664.8,3.0]
[1739436618992,0.27634851,2665.4,2665.3,3.75192]
[1739436619295,0.29134851,2665.4,2665.3,3.75192]
[1739436620903,0.27634851,2665.4,2665.3,3.75192]
[1739436621046,0.27634851,2665.4,2665.3,4.50482]
[1739436621586,8.51e-06,2665.4,2665.3,7.50482]
[1739436621788,8.51e-06,2665.4,2665.3,13.62351731]
[1739436622101,2.03174104,2666.3,2666.2,3.75065]
[1739436622270,0.58646184,2666.7,2666.1,4.54348]
[1739436622470,0.58646184,2666.7,2666.4,3.75037]
[1739436622795,0.83861527,2666.5,2666.4,3.75037]
[1739436622993,0.015,2666.5,2666.4,3.75037]
[1739436623297,0.015,2666.4,2666.3,7.50102]
[1739436623782,0.58646184,2666.7,2666.6,3.75009]
[1739436625413,1.84e-06,2666.7,2666.6,12.53222286]
[1739436627362,1.84e-06,2666.7,2666.6,6.75009]
[1739436627885,1.84e-06,2666.7,2666.6,6.78758107]
[1739436628262,1.84e-06,2666.7,2666.6,6.75009]
[1739436628962,1.84e-06,2666.7,2666.6,11.74308419]
[1739436629194,1.84e-06,2666.7,2666.6,11.70559186]
[1739436629394,1.84e-06,2666.7,2666.6,13.40133138]
[1739436630499,1.84e-06,2666.7,2666.6,14.22073138]
[1739436635326,1.84e-06,2666.7,2666.6,3.75009]
[1739436635712,1.84e-06,2666.7,2666.4,3.75026]
[1739436635926,1.84e-06,2666.7,2666.6,3.75009]
[1739436635927,0.08029431,2666.7,2666.6,3.75009]
[1739436636080,1.84e-06,2666.7,2666.6,3.75009]
[1739436636425,1.84e-06,2666.7,2666.6,6.75009]
[1739436636729,1.84e-06,2666.7,2666.6,7.800121]
[1739436637147,1.84e-06,2666.7,2666.6,13.51072286]
[1739436637650,1.84e-06,2666.7,2666.6,8.555221]
[1739436637843,1.84e-06,2666.7,2666.6,6.75009]
[1739436640149,1.84e-06,2666.7,2666.6,6.78758131]
[1739436641319,1.84e-06,2666.7,2666.6,6.75009]
[1739436641721,1.84e-06,2666.7,2666.6,6.78757922]
[1739436641921,1.84e-06,2666.7,2666.6,7.91662735]
[1739436642129,1.84e-06,2666.7,2666.6,7.87913813]
[1739436642916,1.84e-06,2666.7,2666.6,12.83463999]
[1739436644044,1.84e-06,2666.7,2666.6,13.62913999]
[1739436645668,1.84e-06,2666.7,2666.6,12.88621755]
[1739436652425,0.555,2668.4,2668.3,3.7477]
[1739436652600,4.555,2668.4,2668.3,3.7477]
[1739436652954,4.62050612,2668.4,2668.3,3.7477]
[1739436653517,0.62050612,2668.4,2668.3,3.7477]
[1739436653672,0.62050612,2668.4,2668.2,7.96040942]
[1739436653673,0.0075,2668.3,2667.6,4.21257942]
[1739436653874,0.0075,2668.3,2668.0,3.74804]
[1739436654215,0.06157906,2668.2,2668.1,3.74798]
[1739436654598,0.015,2668.3,2668.2,3.74784]
[1739436654967,0.07673452,2668.3,2668.1,3.74794]
[1739436655323,0.27683208,2668.2,2668.1,3.7479]
[1739436655494,0.27683208,2668.2,2667.9,3.74818]
[1739436655495,0.015,2668.1,2667.9,3.74818]
[1739436655695,0.015,2668.1,2667.9,7.49636]
[1739436655858,0.015,2668.1,2668.0,3.74812]
[1739436656576,0.555,2668.4,2668.2,3.74783]
[1739436656781,4.0,2668.3,2668.0,3.74804]
[1739436656962,4.015,2668.3,2668.2,3.74784]
[1739436657158,0.015,2668.2,2668.1,3.74798]
[1739436657592,0.29129985,2668.2,2668.0,3.74804]
[1739436658073,0.29129985,2668.2,2668.1,3.74798]
[1739436658282,0.29129985,2668.2,2667.9,3.74826]
[1739436658473,0.015,2668.0,2667.9,3.74826]
[1739436659297,0.27629985,2668.1,2668.0,3.74812]
[1739436659499,4.0,2668.3,2668.2,3.74784]
[1739436659799,4.0,2668.3,2667.9,3.74813]
[1739436659972,0.015,2668.2,2667.9,7.4963]
[1739436660293,0.015,2668.2,2667.6,7.21257942]
[1739436660294,0.29125782,2668.2,2668.1,3.74798]
[1739436661169,0.28375782,2668.2,2668.1,3.74798]
[1739436661373,0.27625782,2668.2,2668.1,3.74798]
[1739436661764,0.27625782,2668.2,2668.1,6.74798]
[1739436662190,4.0,2668.3,2668.1,6.74798]
[1739436662400,4.0,2668.3,2668.2,3.74784]
[1739436662885,0.015,2668.2,2668.1,3.74798]
[1739436663204,0.555,2668.4,2668.0,3.74811]
[1739436663402,0.555,2668.4,2668.3,3.7477]
[1739436663761,0.555,2668.4,2668.3,4.99919094]
[1739436664162,0.555,2668.4,2668.3,7.99919094]
[1739436664762,0.61469283,2668.4,2668.3,7.99919094]
[1739436665390,2.83e-06,2668.4,2668.3,7.99919094]
[1739436665587,5.01e-06,2668.4,2668.3,8.73483466]
[1739436665788,5.29,2668.6,2668.5,3.74742]
[1739436666014,5.29,2668.6,2668.5,8.41688741]
[1739436666183,5.29,2669.4,2669.3,3.7463]
[1739436666508,0.015,2669.4,2669.3,3.7463]
[1739436666705,0.015,2669.4,2669.2,3.74642]
[1739436666911,0.29088114,2669.4,2669.2,3.74642]
[1739436667130,0.55,2669.3,2668.8,3.74689]
[1739436667434,0.55,2669.3,2669.0,3.74663]
[1739436667591,5.84,2669.3,2669.0,3.74663]
[1739436667984,0.015,2669.1,2668.8,3.74692]
[1739436668228,0.015,2669.1,2668.8,3.74686]
[1739436668426,0.015,2669.1,2668.7,3.74707]
[1739436668738,0.015,2669.1,2668.9,3.74685]
[1739436668885,0.015,2669.1,2669.0,3.74672]
[1739436669336,0.015,2669.2,2669.1,3.74658]
[1739436669920,0.015,2669.2,2669.0,3.7467]
[1739436670140,0.015,2669.2,2669.1,3.74658]
[1739436670353,5.29,2669.3,2669.1,3.74658]
[1739436670515,0.015,2669.2,2669.0,3.7467]
[1739436670896,0.29086527,2669.2,2668.8,3.7469]
[1739436671066,0.29086527,2669.2,2668.9,3.74673]
[1739436671267,0.29086527,2669.2,2669.0,3.74666]
[1739436671412,0.29086527,2669.2,2668.9,3.74673]
[1739436671611,0.29086527,2669.2,2668.9,7.49351]
[1739436671799,0.27586527,2669.1,2668.9,3.74673]
[1739436672026,0.29086527,2669.1,2669.0,3.74672]
[1739436672650,0.015,2669.0,2668.7,3.7471]
[1739436672809,0.015,2669.0,2668.8,3.74688]
[1739436673009,0.0706567,2668.9,2668.8,3.74688]
[1739436674403,0.34652197,2668.9,2668.8,3.74688]
[1739436674609,0.33152197,2668.9,2668.8,3.74688]
[1739436675339,0.33152197,2668.9,2668.8,12.52435942]
[1739436675656,0.328,2669.4,2668.8,12.52435942]
[1739436675657,0.327,2669.6,2669.5,3.74601]
[1739436675811,0.327,2669.8,2669.6,3.74586]
[1739436676152,0.015,2669.7,2669.6,3.74587]
[1739436676507,0.0075,2669.8,2669.6,3.74587]
[1739436676712,0.015,2669.8,2669.6,3.74587]
[1739436677012,0.015,2669.8,2669.4,3.74608]
[1739436677212,0.565,2669.8,2669.4,3.74608]
[1739436677412,0.015,2669.8,2669.4,3.74606]
[1739436677712,0.015,2669.8,2669.5,3.74593]
[1739436678028,0.015,2669.8,2669.2,3.74633]
[1739436678029,0.565,2669.8,2669.2,3.74633]
[1739436678237,0.565,2669.8,2669.0,0.75960283]
[1739436678238,0.015,2669.6,2669.0,3.74659]
[1739436678479,4.31091,2669.6,2669.1,3.74657]
[1739436678793,0.015,2669.4,2668.8,3.74689]
[1739436679001,0.015,2669.5,2669.2,3.74641]
[1739436679555,0.015,2669.5,2669.0,3.74669]
[1739436679897,0.015,2669.5,2669.0,3.74664]
[1739436680207,0.015,2668.8,2668.0,0.7714]
[1739436680388,3.74764,2668.4,2667.8,3.74833]
[1739436680557,0.015,2668.3,2667.8,3.74827]
[1739436680757,0.015,2668.3,2667.9,3.74815]
[1739436680986,0.015,2668.3,2667.9,3.74822]
[1739436681171,0.015,2668.3,2667.9,7.4964]
[1739436681376,0.015,2668.3,2668.0,3.74804]
[1739436681704,0.015,2668.3,2668.0,3.74801]
[1739436681904,0.015,2668.3,2668.2,3.74784]
[1739436682059,0.326,2668.7,2668.0,0.374801]
[1739436682060,0.326,2668.7,2668.1,3.74793]
[1739436682400,0.326,2668.7,2668.0,0.374801]
[1739436682401,0.326,2668.7,2668.6,3.74728]
[1739436683197,0.015,2668.6,2668.0,0.374801]
[1739436683383,0.015,2668.6,2668.2,3.7477]
[1739436683585,0.015,2668.6,2668.4,3.74756]
[1739436683790,0.06873319,2668.5,2668.4,7.49503]
[1739436684000,0.06873319,2668.5,2668.4,3.74747]
[1739436684304,0.0075,2668.2,2667.3,4.98987942]
[1739436684504,0.565,2668.1,2667.7,3.74853]
[1739436684702,0.61867285,2668.1,2667.5,7.49751]
[1739436684999,0.61867285,2668.1,2667.6,3.74866]
[1739436685401,4.36674285,2668.1,2667.5,7.49747]
[1739436685606,0.61867285,2668.1,2667.6,3.74868]
[1739436685803,0.61867285,2668.1,2667.8,3.74832]
[1739436686065,0.06867285,2668.1,2667.8,3.74832]
[1739436686748,0.06867285,2668.1,2667.6,3.74861]
[1739436686950,0.61867285,2668.1,2667.6,3.74861]
[1739436687146,0.015,2667.9,2667.4,6.74888]
[1739436687354,0.015,2667.7,2667.4,6.74888]
[1739436687580,0.015,2667.7,2667.5,3.74881]
[1739436687845,0.06832779,2667.6,2667.4,6.74888]
[1739436688549,0.015,2667.6,2667.5,3.74882]
[1739436688904,0.015,2667.6,2667.4,6.74888]
[1739436689618,0.015,2667.6,2667.5,3.74882]
[1739436691208,5.29,2668.4,2667.3,0.51777635]
[1739436691413,3.74814,2668.0,2667.4,3.74886]
[1739436691712,0.338,2667.9,2667.8,3.7484]
[1739436692123,9.03732,2668.6,2667.8,3.7484]
[1739436692340,6.11851954,2669.0,2667.9,0.03747981]
[1739436692538,9.03684,2669.0,2668.4,3.74753]
[1739436692748,0.015,2668.8,2668.2,7.4955]
[1739436692947,0.0075,2668.7,2668.3,3.74756]
[1739436693310,3.74635,2669.3,2668.7,3.74704]
[1739436693514,0.323,2668.9,2668.8,3.747]
[1739436694161,0.37615403,2668.9,2668.8,3.747]
[1739436694573,0.05315403,2668.9,2668.8,6.747]
[1739436694742,0.05315403,2668.9,2668.8,11.71907942]
[1739436695075,0.1443508,2670.0,2669.9,3.74545]
[1739436695259,0.1443508,2670.0,2669.9,3.78290032]
[1739436695577,0.1443508,2670.0,2669.9,3.74545]
[1739436696243,0.1443508,2670.0,2669.9,7.9954782]
[1739436696480,0.19623454,2670.0,2669.9,7.95802942]
[1739436696651,0.1443508,2670.0,2669.9,7.95802942]
[1739436696985,0.1443508,2670.0,2669.9,10.95802942]
[1739436697281,0.1443508,2670.0,2669.9,6.74545]
[1739436699060,0.1443508,2670.0,2669.9,8.169115]
[1739436699258,0.1443508,2670.0,2669.9,12.38169442]
[1739436699865,0.1443508,2670.0,2669.9,8.169115]
[1739436700467,0.1443508,2670.0,2669.9,12.38169442]
[1739436701378,0.1443508,2670.0,2669.9,13.18139442]
[1739436702198,8e-07,2670.0,2669.9,13.18139442]
[1739436706497,0.565,2670.8,2670.7,3.74433]
[1739436706995,0.61372451,2670.8,2670.7,3.74433]
[1739436707361,0.61372451,2670.8,2670.6,7.48885]
[1739436707562,0.61372451,2670.8,2670.6,3.74439]
[1739436707797,0.59872451,2670.8,2670.7,3.74433]
[1739436708595,0.55,2670.8,2670.7,3.74433]
[1739436708802,0.59858361,2670.8,2670.7,3.74433]
[1739436709007,0.59858361,2670.8,2670.7,6.74433]
[1739436709210,0.55,2670.8,2670.7,6.74433]
[1739436709508,0.55,2670.8,2670.7,6.78176468]
[1739436709707,0.55,2670.8,2670.7,6.74433]
[1739436710703,0.55,2670.8,2670.7,3.74433]
[1739436711004,0.59878736,2670.8,2670.7,3.74433]
[1739436712316,0.59878736,2670.8,2670.7,4.493202]
[1739436712519,0.55,2670.8,2670.7,7.493202]
[1739436712679,0.55,2670.8,2670.7,8.274102]
[1739436714009,0.55,2670.8,2670.7,6.74433]
[1739436722399,0.565,2670.8,2670.6,3.74437]
[1739436722600,0.61474542,2670.7,2670.0,3.61004726]
[1739436722916,0.61474542,2670.7,2670.3,3.74478]
[1739436723139,0.61474542,2670.7,2670.4,3.74473]
[1739436723304,0.61474542,2670.7,2670.1,3.0]
[1739436723305,0.06474542,2670.7,2670.6,3.74447]
[1739436723505,0.04974542,2670.7,2670.6,3.74447]
[1739436723761,0.55,2670.8,2670.7,3.74433]
[1739436723961,0.55,2670.8,2670.7,6.74433]
[1739436724176,0.5977069,2670.8,2670.7,6.74433]
[1739436724494,0.55,2670.8,2670.7,6.74433]
[1739436725649,0.59772059,2670.8,2670.7,6.74433]
[1739436726056,0.59772059,2670.8,2670.7,8.22877449]
[1739436729087,5.9e-07,2670.8,2670.7,8.22877449]
[1739436729262,8.49e-06,2670.8,2670.7,8.99617449]
[1739436729595,0.015,2671.7,2671.6,3.74307]
[1739436729792,4.05802677,2671.7,2671.6,3.74307]
[1739436731100,4.04302677,2671.7,2671.6,3.74307]
[1739436731256,0.04302677,2671.7,2671.4,3.74335]
[1739436731456,0.015,2671.6,2671.1,3.0]
[1739436731696,0.015,2671.6,2671.2,3.74354]
[1739436731859,0.04319173,2671.5,2671.3,3.74348]
[1739436732056,0.015,2671.4,2670.7,5.86189175]
[1739436732262,0.015,2671.4,2671.1,3.74367]
[1739436732462,0.015,2671.4,2670.7,0.74691997]
[1739436732771,0.015,2671.4,2670.4,7.35476726]
[1739436732772,0.565,2671.2,2670.4,3.61004726]
[1739436732970,0.565,2671.0,2670.5,3.74461]
[1739436733188,0.04307639,2670.9,2670.6,3.74447]
[1739436733559,0.04307639,2670.9,2670.7,3.74422]
[1739436733759,4.0,2671.1,2670.7,3.74422]
[1739436734077,0.05653761,2671.0,2670.7,3.74422]
[1739436734277,0.05653761,2671.0,2670.5,3.7445]
[1739436734896,0.015,2670.8,2670.4,3.74472]
[1739436735107,4.29406,2670.9,2670.4,3.74472]
[1739436735108,0.015,2670.6,2670.4,3.74472]
[1739436735304,0.015,2670.6,2670.5,3.74461]
[1739436735502,0.05617489,2670.5,2670.4,3.74474]
[1739436735705,0.015,2670.5,2670.4,3.74474]
[1739436736227,0.05617489,2670.5,2670.4,3.74474]
[1739436736619,0.015,2670.4,2670.3,3.74489]
[1739436736918,0.05616667,2670.4,2670.3,3.74489]
[1739436737103,0.05616667,2670.4,2670.2,7.48997]
[1739436737304,0.05616667,2670.4,2670.2,3.74494]
[1739436738114,0.05616667,2670.4,2670.1,6.74514]
[1739436738282,0.05616667,2670.4,2670.3,3.74489]
[1739436738486,0.05616667,2670.4,2670.1,6.74514]
[1739436738685,0.05616667,2670.4,2670.1,10.49024]
[1739436738909,0.05616667,2670.4,2670.1,6.7451]
[1739436739085,0.05616667,2670.4,2670.1,3.0]
[1739436739281,0.55,2670.3,2669.9,3.74538]
[1739436739503,4.29489,2670.3,2669.8,3.74556]
[1739436739703,0.015,2670.1,2669.7,3.74563]
[1739436740094,0.04097242,2670.0,2669.8,3.74554]
[1739436740422,0.04097242,2670.0,2669.7,7.49128]
[1739436740581,0.04097242,2670.0,2669.7,3.74563]
[1739436740941,0.015,2669.9,2669.4,3.0]
[1739436741090,0.015,2669.9,2669.3,3.94926983]
[1739436741091,0.015,2669.9,2669.7,3.74565]
[1739436741296,4.29501,2670.3,2669.7,3.74573]
[1739436741297,0.05587097,2669.8,2669.7,3.74573]
[1739436741584,0.04087097,2669.8,2669.7,3.74573]
[1739436741895,0.015,2670.2,2669.9,3.74534]
[1739436742114,0.015,2670.2,2669.5,3.61004726]
[1739436742286,0.015,2670.2,2670.1,3.74517]
[1739436743085,3.74436,2670.7,2670.1,3.74517]
[1739436743086,5.29,2670.9,2670.6,3.74446]
[1739436743296,0.31,2670.8,2670.1,3.61004726]
[1739436743500,0.31,2670.8,2670.3,3.7448]
[1739436743723,0.015,2670.6,2670.2,3.74503]
[1739436743891,0.015,2670.6,2670.3,3.74489]
[1739436744079,0.05597295,2670.5,2670.4,3.74475]
[1739436744635,0.04097295,2670.5,2670.4,7.35479726]
[1739436744844,4.0,2671.1,2671.0,3.74391]
[1739436745024,4.03965684,2671.1,2671.0,3.74391]
[1739436745484,0.03965684,2671.1,2671.0,3.74391]
[1739436746001,1.1395546,2671.5,2670.8,3.0]
[1739436746361,0.05471727,2671.4,2670.9,3.74395]
[1739436747132,0.565,2671.2,2670.7,3.74425]
[1739436747339,0.565,2671.2,2670.5,3.74454]
[1739436747533,0.565,2670.8,2670.3,3.74478]
[1739436747950,0.015,2670.6,2670.3,3.74478]
[1739436748424,0.015,2670.7,2670.2,3.0]
[1739436748768,0.015,2670.5,2670.2,6.74502]
[1739436748961,0.015,2670.5,2670.2,3.0]
[1739436749119,0.03982276,2670.4,2670.2,3.0]
[1739436749327,0.015,2670.3,2669.9,3.74537]
[1739436749631,0.015,2670.1,2670.0,3.74531]
[1739436749878,0.0547981,2670.1,2670.0,3.74531]
[1739436750729,0.309,2670.5,2670.2,3.74489]
[1739436750928,0.015,2670.4,2670.2,3.74498]
[1739436751171,0.05480676,2670.4,2670.2,7.48993]
[1739436751381,0.309,2670.6,2670.5,3.74454]
[1739436751532,0.309,2670.9,2670.7,3.74424]
[1739436751724,0.309,2670.9,2670.7,3.74423]
[1739436751925,0.309,2670.9,2670.8,3.74419]
[1739436752126,0.309,2670.9,2670.7,3.74423]
[1739436752376,0.015,2670.8,2670.4,3.0]
[1739436752578,0.565,2670.8,2670.3,3.74478]
[1739436752829,0.565,2670.8,2670.2,3.74497]
[1739436752830,8.05356,2670.8,2670.2,3.74497]
[1739436753325,0.015,2670.6,2670.1,3.7451]
[1739436753603,0.015,2670.6,2669.8,3.0]
[1739436753789,0.015,2670.6,2670.4,3.74468]
[1739436753950,0.015,2670.6,2670.3,3.7448]
[1739436754574,0.015,2670.6,2670.5,3.74461]
[1739436755863,0.015,2670.6,2670.3,3.74481]
[1739436756653,0.015,2670.6,2670.1,3.74513]
[1739436756841,0.015,2670.6,2669.9,1.49403534]
[1739436756842,0.015,2670.4,2669.9,3.74531]
[1739436757343,4.30965,2670.5,2669.9,3.74531]
[1739436757785,0.015,2670.2,2669.7,3.74564]
[1739436758281,9.03454,2670.6,2670.1,3.74517]
[1739436758282,5.29,2670.6,2670.1,3.74517]
[1739436758487,0.565,2670.5,2670.1,3.74517]
[1739436758645,0.60313736,2670.5,2670.0,3.7453]
[1739436758840,4.34781736,2670.5,2670.0,3.7453]
[1739436759582,0.565,2670.3,2669.8,3.7455]
[1739436759741,4.30989,2670.3,2669.8,3.7455]
[1739436759947,0.565,2670.1,2669.8,3.7455]
[1739436760146,0.565,2670.1,2669.3,7.53606]
[1739436760147,0.015,2670.1,2669.4,0.189199]
[1739436760342,0.0378994,2670.0,2669.9,3.74545]
[1739436760541,0.0528994,2670.0,2669.9,3.74545]
[1739436760743,0.015,2670.0,2669.9,3.74545]
[1739436760939,0.0528994,2670.0,2669.9,3.74545]
[1739436761283,0.015,2669.9,2669.8,3.74559]
[1739436761584,0.015,2669.9,2669.7,3.74564]
[1739436761746,0.05285985,2669.9,2669.7,3.74564]
[1739436761948,0.05285985,2669.9,2669.8,3.74559]
[1739436762684,0.05285985,2669.9,2669.7,7.49129]
[1739436762878,0.05285985,2669.9,2669.8,3.74559]
[1739436764355,0.03785985,2669.9,2669.8,3.74559]
[1739436764780,4.30977,2670.4,2669.9,3.74532]
[1739436765079,0.565,2670.4,2669.9,3.74532]
[1739436765502,4.30984,2670.4,2669.9,3.74532]
[1739436765697,0.565,2670.4,2670.0,3.74518]
[1739436765858,4.30982,2670.4,2669.4,3.74616]
[1739436766198,0.565,2670.4,2670.0,3.74531]
[1739436766352,0.015,2670.4,2670.0,3.74531]
[1739436766556,0.305,2670.3,2669.9,3.74534]
[1739436767097,0.015,2670.2,2669.9,3.74534]
[1739436767396,0.015,2669.6,2668.7,0.19125375]
[1739436767599,0.55,2669.1,2668.3,0.7875]
[1739436767752,0.855,2669.1,2668.6,3.74717]
[1739436767958,0.015,2669.0,2668.6,7.49437]
[1739436768270,0.015,2669.0,2668.6,3.74717]
[1739436768669,0.015,2669.0,2668.5,3.74738]
[1739436768857,0.015,2669.0,2668.4,3.74749]
[1739436768858,0.55,2668.9,2668.4,3.74749]
[1739436769080,0.015,2668.8,2668.4,3.74747]
[1739436769484,0.55,2668.7,2668.3,3.74768]
[1739436769798,0.55,2668.7,2668.2,3.74778]
[1739436769986,0.55,2668.7,2668.4,3.74755]
[1739436770357,0.565,2668.8,2668.0,0.9783414]
[1739436770557,0.565,2668.8,2668.1,3.74798]
[1739436770792,0.015,2668.8,2668.7,3.74714]
[1739436771096,0.32,2668.8,2668.7,3.74714]
[1739436771257,0.32,2668.8,2668.6,3.74724]
[1739436771458,0.32,2668.8,2668.4,3.74753]